Cogmind - Beta 15 @@@ ROGUE MODE // 2025.08.17 @ 13:19:26 Player: winnking222 Result: Destroyed by 10-I5H(R) with Subdweller Machine Gun Performance ------------- Evolutions (0) 0 Regions Visited (2) 400 Robots Destroyed (39) 195 Value Destroyed (737) 737 Prototype IDs (1) 20 Alien Tech Used (0) 0 Bonus (0) 0 TOTAL SCORE: 1352 Bonus ------- None Cogmind --------- Core Integrity 0/250 Matter 295/300 Energy 100/100 System Corruption 3% Temperature Cool (0) Movement Rolling (107) Ox1 Location -10/Subcaves Parts ------- > --- POWER (1) -------- Subdweller Power Source > --- PROPULSION (2) --- Wheel Subdweller Monowheel > --- UTILITY (2) ------ High-capacity Storage Unit Makeshift Kinetic Plating > --- WEAPON (2) ------- Subdweller Machine Gun Subdweller Machine Gun > --- INVENTORY (20) --- Subdweller Power Source Wheel Subdweller Monowheel Subdweller Monowheel Improved Heat Sink Disposable Heat Sink Light Humpback High-capacity Matter Pod (200) Subdweller Optics Seismic Detector Makeshift Light Armor Plating Scrap Shield Heavy Riot Gun Subdweller Laser Subdweller Beam Cannon Subdweller Beam Cannon Grenade Launcher Peak State ------------ > --- POWER ------------ Ion Engine > --- PROPULSION ------- Light Treads Subdweller Monowheel > --- UTILITY ---------- High-capacity Storage Unit Makeshift Kinetic Plating > --- WEAPON ----------- Heavy Riot Gun Subdweller Laser > --- INVENTORY -------- Subdweller Power Source Wheel Wheel Subdweller Monowheel Improved Heat Sink Large Storage Unit High-capacity Matter Pod Subdweller Optics Seismic Detector Medium Armor Plating Medium Armor Plating Subdweller Laser Beam Cannon Advanced Beam Cannon Advanced Beam Cannon Advanced Beam Cannon Battle Rifle Grenade Launcher [Rating: 18] Favorites ----------- Power Ion Engine Engine Ion Engine Propulsion Light Treads Treads Light Treads Leg Improved Aluminum Leg Wheel Subdweller Monowheel Utility High-capacity Storage Unit Device Seismic Detector Storage High-capacity Storage Unit Protection Medium Armor Plating Weapon Subdweller Machine Gun Energy Gun Subdweller Laser Energy Cannon Advanced Beam Cannon Ballistic Gun Subdweller Machine Gun Launcher Grenade Launcher Build | -11 -10 -10 ------- Run | Yrd Mat Sub Slots Evolved . | . . . Power . | . . . Propulsion . | . . . Utility . | . . . Weapon . | . . . Parts Attached 39 | 7 9 23 Power 4 | 1 1 2 Engine 4 | 1 1 2 Core . | . . . Reactor . | . . . Propulsion 10 | 2 4 4 Treads 4 | 2 2 . Leg 2 | . 2 . Wheel 4 | . . 4 Hover . | . . . Flight . | . . . Utility 11 | 2 3 6 Device 2 | 1 . 1 Storage 3 | 1 2 . Processor . | . . . Hackware . | . . . Protection 6 | . 1 5 Artifact . | . . . Weapon 14 | 2 1 11 Energy Gun 2 | . . 2 Energy Cannon 3 | . 1 2 Ballistic Gun 8 | 2 . 6 Ballistic Cannon . | . . . Launcher 1 | . . 1 Special Weapon . | . . . Impact Weapon . | . . . Slashing Weapon . | . . . Piercing Weapon . | . . . Special Melee Weapon . | . . . Unidentified Prototypes 1 | . 1 . Parts Lost 8 | . . 8 Power 2 | . . 2 Propulsion 3 | . . 3 Utility 2 | . . 2 Weapon 1 | . . 1 Highest Loss Streak 3 | . . 3 To Critical Strikes . | . . . Average Backups 14 | 4 12 17 Power 1 | . 1 1 Propulsion 3 | 2 3 3 Utility 5 | . 5 6 Weapon 4 | . 3 6 Tool/Special . | . . . Unused Backups 22 | . 3 19 Power 2 | . 1 1 Propulsion 6 | . 2 4 Utility 9 | . . 9 Weapon 5 | . . 5 Tool/Special . | . . . Average Slot Usage (%) 99 | . 99 99 Engine 13 | . 14 13 Treads 13 | . 13 14 Leg 6 | . 14 . Wheel 7 | . . 13 Device 4 | . 6 3 Storage 13 | . 14 13 Protection 9 | . 7 10 Energy Cannon 2 | . . 5 Ballistic Gun 24 | . 27 22 Peak Build Rating 18 | 7 12 18 Average Rating 12 | 5 9 14 On Entrance 5 | . 7 10 Naked Turns . | . . . Heaviest Build 60 | 12 55 60 Greatest Support 40 | 40 40 40 Greatest Overweight (x) 5 | 1 2 5 Average Overweight (x) 1 | . . 1 Largest Inventory Capacity 20 | 8 20 20 Average Capacity 16 | 7 15 19 Most Carried 20 | 6 17 20 Average Carried 14 | 4 12 18 Final Capacity 20 | 8 20 20 Final Carried 19 | 5 17 19 Class Distribution -------------------- 92% | Mutant 6% | Scavenger-Mutant Dominant Class ---------------- Mutant | -10/Materials Mutant | -10/Subcaves Resources | -11 -10 -10 ----------- Run | Yrd Mat Sub Matter Collected 1476 | 377 499 600 Remotely . | . . . Salvage Created 858 | 156 257 445 Parts 78 | 26 19 33 Haulers Intercepted . | . . . Recyclers Shooed . | . . . Parts Field Recycled . | . . . Retrieved Matter . | . . . Parts Self-Destructed 15 | . . 15 Prevented . | . . . Kills | -11 -10 -10 ------- Run | Yrd Mat Sub Combat Hostiles Destroyed 25 | . 8 17 Guns 16 | . 8 8 Cannons 2 | . . 2 AOE 7 | . . 7 Classes Destroyed 6 | 1 5 . Worker 2 | . 2 . Tunneler 9 | 9 . . Watcher 3 | . 3 . Swarmer 13 | . 6 7 Grunt 1 | . 1 . Subdweller 11 | . 1 10 Best Kill Streak 5 | 3 5 4 Combat Bots Only 4 | . 4 4 Max Kills in Single Turn 4 | 1 2 4 Gunslinging 1 | . . 1 Exploded 4 | . . 4 Melee . | . . . Uniques/NPCs Destroyed . | . . . Combat | -11 -10 -10 -------- Run | Yrd Mat Sub Hostile Shots Fired 174 | . 60 114 Missed 47 | . 12 35 Hits 127 | . 48 79 Projectile 127 | . 48 79 Critical Strikes 2 | . 1 1 Damage Taken 1841 | . 493 1348 Core 263 | . 75 188 Absorbed by Shields . | . . . Ignored by Resistances 55 | . . 55 Core Remaining (%) 100 | 100 . . Volleys Fired 118 | 32 34 52 Largest 2 | 2 2 2 Hottest 136 | 40 40 136 Shots Fired 231 | 64 70 97 Gun 193 | 64 70 59 Cannon 35 | . . 35 Launcher 3 | . . 3 Special . | . . . Kinetic 187 | 64 70 53 Thermal 38 | . . 38 Explosive 3 | . . 3 Electromagnetic 3 | . . 3 Robot Hit Streak 13 | 5 4 13 Robot Miss Streak 9 | 3 9 2 Penetration Max . | . . . Secondary Targets 2 | . 1 1 Max Gunslinging Chain 1 | . 1 1 Shots Hit Robots 130 | 34 34 62 Core Hits 57 | 12 22 23 Critical Kills 1 | . . 1 Critical Parts Destroyed . | . . . Critical Strikes 3 | . . 3 Destroy 3 | . . 3 Melee Attacks . | . . . Impact . | . . . Slashing . | . . . Piercing . | . . . Sneak Attacks . | . . . Combat Hostiles . | . . . Follow-up Attacks . | . . . Damage Inflicted 2398 | 371 443 1584 Guns 1547 | 371 372 804 Cannons 411 | . . 411 Explosions 440 | . 71 369 Melee . | . . . Ramming . | . . . Kinetic 1414 | 371 372 671 Thermal 475 | . . 475 Explosive 440 | . 71 369 Electromagnetic 69 | . . 69 Impact . | . . . Slashing . | . . . Piercing . | . . . Highest Corruption 3 | . 3 3 Average Corruption 3 | . 3 3 Corruption Purged . | . . . Corruption Blocked . | . . . Effects 45 | . 15 30 Message Errors 11 | . 2 9 Matter Fused 12 | . 5 7 Heat Flow Errors 6 | . 3 3 Energy Discharges 5 | . 1 4 Data Loss (minor) 4 | . . 4 Data Loss (major) 2 | . . 2 Misfires 2 | . 2 . Alerts 2 | . 2 . Weapon Failures 1 | . . 1 Overload Shots . | . . . Overflow Damage 62 | . . 62 Projectiles . | . . . Explosions 62 | . . 62 Melee . | . . . Knockbacks . | . . . Impact . | . . . Kinetic . | . . . Secondary . | . . . Self-Inflicted Damage 84 | . 84 . Shots 1 | . 1 . Rammed . | . . . Targets Rammed . | . . . Kicked . | . . . Crushed . | . . . Highest Temperature 226 | . 226 204 Average Temperature 87 | . 98 76 Received Heat Transfer 201 | . 33 168 Siege Activations . | . . . Martial Activations . | . . . Shielding Activations . | . . . Robots Disrupted . | . . . Combat Hostiles . | . . . Robots Corrupted . | . . . Combat Hostiles . | . . . Parts Fried . | . . . Impact Corruptions . | . . . Robots Melted . | . . . Combat Hostiles . | . . . Parts Melted . | . . . Heat Transferred 815 | . . 815 Parts Sabotaged . | . . . Parts Stolen . | . . . Parts Stripped . | . . . Power Chain Reactions . | . . . Alert | -11 -10 -10 ------- Run | Yrd Mat Sub Maximum Alert Level . | . . . Low Security (%) 100 | 100 100 . Level 1 . | . . . Level 2 . | . . . Level 3 . | . . . Level 4 . | . . . Level 5 . | . . . High Security . | . . . Max Security . | . . . Peak Influence 95 | 10 95 . Initial . | . . . Average 9 | 1 11 . Influence Increases 469 | 45 244 180 Destroy 0b10 Robot/C 280 | . 140 140 Destroy 0b10 Robot/NC 70 | 45 25 . Destroy Leader 46 | . 36 10 Successful Hack 13 | . 13 . Disable Machine 30 | . 30 . Lose Combat Pursuer 30 | . . 30 Influence Decreases 469 | 45 244 180 Time Decay 419 | 45 244 130 Lost Part 50 | . . 50 Squads Dispatched 1 | . 1 . Investigation . | . . . Extermination . | . . . Reinforcement 1 | . 1 . Assault . | . . . Garrison . | . . . Intercept . | . . . Searches Triggered . | . . . Construction Impeded . | . . . Haulers Reinforced . | . . . Active Scanning Responses . | . . . Cargo Convoy Interrupts . | . . . Stealth | -11 -10 -10 --------- Run | Yrd Mat Sub Distress Signals . | . . . Communications Jammed . | . . . Distress Signals . | . . . Times Spotted 36 | . 15 21 Peak Tracking Total 7 | . 4 7 Tactical Retreats 2 | . 1 1 Traps | -11 -10 -10 ------- Run | Yrd Mat Sub Traps Triggered 1 | . 1 . Indirectly . | . . . Trap Hack Attempts . | . . . Triggered . | . . . Disarmed 4 | . 4 . Reprogrammed . | . . . Reused 1 | . . 1 Traps Extracted . | . . . Installed 1 | . . 1 Triggered . | . . . Most Traps Carried 1 | . . 1 Machines | -11 -10 -10 ---------- Run | Yrd Mat Sub Machines Disabled 2 | . 2 . Max in Single Turn 2 | . 2 . Machines Repaired . | . . . Machines Dismantled . | . . . Machines Sabotaged . | . . . Overloaded Fab Kills . | . . . Hacking | -11 -10 -10 --------- Run | Yrd Mat Sub Machines Accessed 7 | . 7 . Terminals 7 | . 7 . Fabricators . | . . . Repair Stations . | . . . Recycling Units . | . . . Scanalyzers . | . . . Garrison Access . | . . . Total Hacks 17 | . 17 . Successful 10 | . 10 . Failed 7 | . 7 . Catastrophic . | . . . Database Lockouts . | . . . Manual 14 | . 14 . Terminals 17 | . 17 . Fabricators . | . . . Repair Stations . | . . . Recycling Units . | . . . Scanalyzers . | . . . Garrison Access . | . . . Terminal Hacks 1 | . 1 . Disarm Traps 1 | . 1 . Fabricator Hacks . | . . . Repair Station Hacks . | . . . Recycling Unit Hacks . | . . . Scanalyzer . | . . . Garrison Access Hacks . | . . . Unauthorized Hacks 9 | . 9 . Terminals 9 | . 9 . Botnet 3 | . 3 . Skim 6 | . 6 . Fabricators . | . . . Repair Stations . | . . . Recycling Units . | . . . Scanalyzers . | . . . Garrison Access . | . . . Data Cores Recovered . | . . . Used . | . . . Hacking Detections 5 | . 5 . Full Trace Events . | . . . Feedback Events . | . . . Feedback Blocked . | . . . Robot Schematics Acquired . | . . . Robots Built . | . . . Authchips . | . . . Time . | . . . Total Robot Build Rating . | . . . Part Schematics Acquired . | . . . Parts Built . | . . . Authchips . | . . . Time . | . . . Total Part Build Rating . | . . . Parts Repaired . | . . . Time . | . . . Parts Recycled . | . . . Recycled Matter . | . . . Retrieved Matter . | . . . Retrieved Components . | . . . Parts Scanalyzed . | . . . Part Schematics Acquired . | . . . Parts Damaged . | . . . Bothacking | -11 -10 -10 ------------ Run | Yrd Mat Sub Used RIF Installer . | . . . Robots Hacked . | . . . Non-combat . | . . . Combat . | . . . Robot Hacks Applied . | . . . Relay Couplers Released . | . . . Fabnet Peak Effective % . | . . . Robots Rewired . | . . . Allies Hacked . | . . . Hacks Repelled . | . . . Allies | -11 -10 -10 -------- Run | Yrd Mat Sub Total Allies . | . . . Largest Group . | . . . Highest-Rated Group . | . . . Highest-Rated Ally . | . . . Total Orders . | . . . Ally Attacks . | . . . Total Damage . | . . . Kills . | . . . Allies Corrupted . | . . . Allies Melted . | . . . Intel | -11 -10 -10 ------- Run | Yrd Mat Sub Active Infowar (turns) 1301 | 1 772 528 Seismic 1301 | 1 772 528 Robot Analysis Total . | . . . Derelict Logs Recovered . | . . . Drone Launches . | . . . Drone Recoveries . | . . . Exploration | -11 -10 -10 ------------- Run | Yrd Mat Sub Turns Passed 3993 | 302 1700 1991 Spaces Moved 1884 | 126 779 979 Core 18 | 18 . . Treads 676 | 108 401 167 Legs 378 | . 378 . Wheels 812 | . . 812 Hover . | . . . Flight . | . . . Fastest Speed 50 | 50 160 107 Average Speed 161 | 145 192 139 Slowest Speed 260 | 160 260 240 Overloaded Moves . | . . . Propulsion Burnouts . | . . . Robots Hopped . | . . . Potential Cave-ins . | . . . Cave-ins Triggered . | . . . Exploration Rate (%) 50 | 4 96 50 Regions Visited 2 Branch Regions 1 Pre-discovered Areas . | . . . Known Exits Taken . | . . . Unknown Exits Taken 2 | 1 1 . Scrap Searched 5 | . . 5 Spaces Dug . | . . . Terrain Destroyed 20 | . . 20 Melee . | . . . Projectile . | . . . AOE 20 | . . 20 Terrain Rammed . | . . . Walls Destroyed . | . . . Machines Disabled . | . . . Actions | -11 -10 -10 --------- Run | Yrd Mat Sub Total 2618 | 186 927 1505 Wait 444 | 12 67 365 Move 1882 | 125 778 979 Hop . | . . . Pick Up 89 | 10 23 56 Fast Attach 6 | 2 3 1 Attach 19 | 5 5 9 Detach . | . . . Swap 24 | . 3 21 Drop 35 | . 14 21 Fire 118 | 32 34 52 Melee . | . . . Ram . | . . . Kick . | . . . Crush . | . . . Escape Stasis . | . . . Rewire . | . . . Trap 1 | . . 1 Miscellaneous . | . . . Route ------- -11/Scrapyard -10/Materials (discovered 5 exits: [*Mat x3] / [*Min] / [*Sub]) -10/Subcaves (discovered 3 exits: *Mat x2 / [*Rec]) History --------- Turn | Location | Event 8 | -11/Scrapyard | Discovered new exit (range 14) 303 | -11/Scrapyard | Entered Materials 323 | -10/Materials | Build established: Mutant 625 | -10/Materials | Discovered new exit (range 8) 699 | -10/Materials | Discovered new exit (range 9) 885 | -10/Materials | Discovered new exit (range 3) 1103 | -10/Materials | Derelicts attacked the area 1345 | -10/Materials | Discovered new exit (range 15) 1502 | -10/Materials | Learned location of 2 exits from Subcaves 1532 | -10/Materials | Learned location of 2 exits from Mines 1553 | -10/Materials | Learned location of 2 exits from Subcaves 1563 | -10/Materials | Learned 4 Recycling zone layouts 1564 | -10/Materials | Learned location of 2 exits from Subcaves 1572 | -10/Materials | Learned 4 Subcaves zone layouts 1591 | -10/Materials | Learned location of 2 exits from Mines 1982 | -10/Materials | Discovered new exit (range 10) 2003 | -10/Materials | Entered Subcaves 2003 | -10/Subcaves | Discovered new exit (range 11) 2004 | -10/Subcaves | Identified exit to Materials 2075 | -10/Subcaves | Shifting Twisted Machinery released Mak. Kinetic Plating 2190 | -10/Subcaves | Lost 3 parts (2n1u) 2223 | -10/Subcaves | Shifting Twisted Machinery released Battle Rifle 2275 | -10/Subcaves | Shifting Twisted Machinery released Hvy. Riot Gun 2289 | -10/Subcaves | Shifting Twisted Machinery released Sub. Optics 2367 | -10/Subcaves | Core integrity fell below 50% 3468 | -10/Subcaves | Core integrity fell below 20% 3600 | -10/Subcaves | A swath of the cavern ceiling suddenly collapsed 3994 | -10/Subcaves | Destroyed by 10-I5H(R) with Subdweller Machine Gun Last Messages --------------- A swath of the cavern ceiling suddenly collapses. 03643_ <|PHIXD6OPUVRTS PFQ=OX168D>Q DGLX,CJ7M 03721_ EO-TCA(R) emerges from the Twisted Machinery. 03722_ Ion Engine destroyed. 03727_ Sub. Machine Gun destroyed. 03732_ EO-TCA(R) destroyed. 03732_ Switching to secondary target: 5Z-LE4(R). 03732_ 5Z-LE4(R) destroyed. 03742_ Acquired Sub. Monowheel. 03743_ Acquired 51 matter. 03746_ Acquired Sub. Power Source. 03747_ Acquired 41 matter. 03762_ Sub. Monowheel shoots sparks and powers down. 03765_ Dropped Broken Sub. Monowheel. 03766_ Acquired 3 matter. 03774_ System corrupted: Heat flow error (+154). 03825_ System corrupted: Substantial component data lost. 03857_ Acquired 7 matter. 03925_ Sub. Power Source shoots sparks and powers down. 03960_ System corrupted: Matter fused (-5). Map ----- +----------------------------------------------------+ | ?????????????????????????????????????????????????? | | ?????????????????????????????????????????????????? | | ?????????????????????????????????????????????????? | | ?????????????????????????????????????????????????? | | ?????????????????????????????????????????????????? | | ?????????????????????????????????????????????????? | | ?????????????????????????????????????????????????? | | ?????????????????????????????????????????????????? | | ?????????????????????????????????????????????????? | | ?????????????????????????????????????????????????? | | ?????????????????????????????????????????????????? | | ?????????????????????????????????????????????????? | | ????????????????????? ???????????????????????????? | | ???????????????????? "#??????????????????????????? | | ?????????????????"" "" ??????????????????????????? | | ????????????????""""" ??????????????????????????? | | ????????????????""" ?????????????????????????? | | ??????????????"""" ?????????????????????????? | | ??????????????"""" ?????????????????????????? | | ????????????""" ?????????????????????????? | | ?????????# "" "????????????????????????? | | ?????????#"" ????????????????????????? | | ?????????## ????????????????????????? | | ??????????##### ####????????????????????? | | ??????????????#### #????????????????????? | | ?????????????????## @ ##?????????######?"??? | | ??????????????????# ##????????# # ???? | | ??????????????##### ##???????## ????# | | ????????????### #???????#" ##????# | | ???????????## #?????###" "###?## | | ???????????# #???### " ### | | ???????????# R # # #???# | | ??????????## # ##### | | ??????????# R ### # # ## "" | | ??????????# #?## # ## "###""" | | ??????????# ##?# ## ### " "####?##"" | | ??????????## ##?### ?## ??# # # " " ######### | | ???????????####?## ? ??## ####" "## ""#? | | ????????????????# ? ## ?## #####"## ! "#?? | | ???????????????## ##" ?# ###### ! ##""### | | ??????????????## ?"""" ?# ##????##%# # "" | | ??????????????# """" ## ##??????#& """"" | | ????????????### """" ##???????##" "" " | | ????????????# ## #????????# ### ## | | ????????????# " ???# " ########## "##??#"" | | ?????????????? "???????#""" ## ## """##?#"" | | ?????????????# "???????##""" " " " """" #??#" | | ?????????????# "????????#"" "" """"" #??# | | ????????????## "????????# # # ####""" ##??# | | ???????????## ?###????##### ######??## ###### | +----------------------------------------------------+ Best States ------------- Heat Dissipation 25 Energy Generation 15 Energy Capacity 250 Matter Stores 300 Matter Capacity 300 Sight Range 16 Terrain Scan Density 10 Armor Coverage 325 Resistance: KI 10 Evasion (%) 50 Recoil Reduction 2 Item Schematics ----------------- None Robot Schematics ------------------ None Fabricated ------------ Nothing Repaired ---------- Nothing Alien Tech Used ----------------- None Achievements -------------- None Challenges ------------ None Game ------ Seed AnalysisReactionCannon Manual? 0 Play Time 00:24:00 Cumulative 137.2 hours Start 2025.08.17 @ 12:57:43 End 2025.08.17 @ 13:19:26 Sessions 1 Manual Loads 0 Difficulty Rogue Special Mode None Game No. 194 Rogue 194 Adventurer 0 Explorer 0 Win Type - Total 1 Types 1/0/0/0/0/0/0/0/0/0 Lore% 69 Gallery% 63 Achievement% 53 Wizard Run 0 Options --------- Layout 0 ASCII 0 Keyboard 0 Movement Mouse Keybinds 0 Fullscreen 1 Font 16/SmallcapsGlow Map View 75x55 Zoom Use 0% Tactical HUD 1 Map Filters NONE Filters NONE Steam 1 RUN: b414a037-99d8-4246-b5e7-65ff83857f33